[Event "*** MasterClass Titled Tuesday Blitz"]
[Site "Chess.com"]
[Date "2017.08.01"]
[Round "1"]
[White "Ar4uha"]
[Black "YaWaleriy"]
[Result "0-1"]
[WhiteElo "2462"]
[BlackElo "2201"]
[TimeControl "180+2"]
[EndTime "13:08:55 PDT"]
[Termination "YaWaleriy won by resignation"]

1. Nf3 {[%clk 0:01:35.5]} 1... d5 {[%clk 0:03:00.1]} 2. g3 {[%clk 0:01:35.8]}
2... e6 {[%clk 0:03:01.1]} 3. Bg2 {[%clk 0:01:37.7]} 3... Nf6 {[%clk 0:03:02.3]}
4. O-O {[%clk 0:01:39.2]} 4... Be7 {[%clk 0:03:03.5]} 5. c4 {[%clk 0:01:41.1]}
5... O-O {[%clk 0:03:03.5]} 6. d4 {[%clk 0:01:42.6]} 6... c6 {[%clk 0:03:03.5]}
7. Nbd2 {[%clk 0:01:43]} 7... Nbd7 {[%clk 0:03:04.5]} 8. Qc2 {[%clk 0:01:44.3]}
8... b6 {[%clk 0:03:05.5]} 9. e4 {[%clk 0:01:45.5]} 9... Ba6 {[%clk 0:03:05.9]}
10. e5 {[%clk 0:01:46.3]} 10... Ne8 {[%clk 0:03:06.6]} 11. Rd1 {[%clk 0:01:46]}
11... Nc7 {[%clk 0:02:57.5]} 12. b3 {[%clk 0:01:45.9]} 12... c5 {[%clk
0:02:47.8]} 13. cxd5 {[%clk 0:01:44.1]} 13... Nxd5 {[%clk 0:02:48.1]} 14. dxc5
{[%clk 0:01:43.4]} 14... Nxc5 {[%clk 0:02:48.7]} 15. Nc4 {[%clk 0:01:44.5]}
15... Rc8 {[%clk 0:02:47.3]} 16. Bb2 {[%clk 0:01:43.4]} 16... Bb7 {[%clk
0:02:43.3]} 17. Qe2 {[%clk 0:01:43.2]} 17... b5 {[%clk 0:02:34.6]} 18. Ne3
{[%clk 0:01:43.6]} 18... Qb6 {[%clk 0:02:33.1]} 19. Rac1 {[%clk 0:01:39.8]}
19... Rfd8 {[%clk 0:02:31.1]} 20. Bd4 {[%clk 0:01:39.5]} 20... Qa5 {[%clk
0:02:25.3]} 21. Nxd5 {[%clk 0:01:32.2]} 21... Bxd5 {[%clk 0:02:25.5]} 22. Bc3
{[%clk 0:01:31.7]} 22... Qb6 {[%clk 0:02:11.2]} 23. Qe1 {[%clk 0:01:32.9]} 23...
Qb7 {[%clk 0:02:10.1]} 24. Nh4 {[%clk 0:01:33.9]} 24... Bxg2 {[%clk 0:02:09.8]}
25. Nxg2 {[%clk 0:01:35.8]} 25... Ne4 {[%clk 0:02:09]} 26. Ba5 {[%clk
0:01:36.3]} 26... Rxd1 {[%clk 0:02:09.9]} 27. Rxd1 {[%clk 0:01:38.2]} 27... Ng5
{[%clk 0:02:06.1]} 28. Qe3 {[%clk 0:01:37.6]} 28... Nf3+ {[%clk 0:01:57.1]} 29.
Kh1 {[%clk 0:01:38.2]} 29... h6 {[%clk 0:01:57.9]} 30. b4 {[%clk 0:01:38]} 30...
Bg5 {[%clk 0:01:54.1]} 31. Qe2 {[%clk 0:01:31.8]} 31... Rc1 {[%clk 0:01:44.4]}
32. Rxc1 {[%clk 0:01:31.1]} 32... Bxc1 {[%clk 0:01:45.4]} 33. h4 {[%clk
0:01:02.5]} 33... h5 {[%clk 0:01:44.8]} 34. Qd1 {[%clk 0:00:53.5]} 34... Bd2
{[%clk 0:01:41.4]} 35. Nf4 {[%clk 0:00:50]} 35... Bxf4 {[%clk 0:01:29.7]} 36.
gxf4 {[%clk 0:00:49.1]} 36... Nxh4+ {[%clk 0:01:30.4]} 37. f3 {[%clk 0:00:49.7]}
37... Qxf3+ {[%clk 0:01:30.3]} 38. Qxf3 {[%clk 0:00:49.9]} 38... Nxf3 {[%clk
0:01:31.3]} 39. Kg2 {[%clk 0:00:51.7]} 39... Nd4 {[%clk 0:01:21.1]} 40. Kg3
{[%clk 0:00:51.6]} 40... Nc6 {[%clk 0:01:21.8]} 41. Bc7 {[%clk 0:00:50.5]} 41...
Kh7 {[%clk 0:01:22.4]} 42. Bd6 {[%clk 0:00:51.2]} 42... Kg6 {[%clk 0:01:22.7]}
43. Kh4 {[%clk 0:00:52.1]} 43... a6 {[%clk 0:01:21.7]} 44. a3 {[%clk 0:00:52.2]}
44... Nd4 {[%clk 0:01:22.3]} 45. Kg3 {[%clk 0:00:46.4]} 45... Kf5 {[%clk
0:01:21.1]} 46. Bf8 {[%clk 0:00:47.4]} 46... g6 {[%clk 0:01:21.8]} 47. Bh6
{[%clk 0:00:48.2]} 47... Nc2 {[%clk 0:01:22.3]} 48. Kf3 {[%clk 0:00:49.6]} 48...
Nxa3 {[%clk 0:01:22.9]} 49. Ke3 {[%clk 0:00:50.7]} 49... Nc4+ {[%clk 0:01:23.8]}
50. Kd4 {[%clk 0:00:52.3]} 50... a5 {[%clk 0:01:24]} 51. bxa5 {[%clk 0:00:52.6]}
51... Nxa5 {[%clk 0:01:25.1]} 52. Bg5 {[%clk 0:00:54.5]} 52... Nc6+ {[%clk
0:01:24.2]} 53. Kc5 {[%clk 0:00:55.7]} 53... Nxe5 {[%clk 0:01:25]} 54. Kxb5
{[%clk 0:00:55.4]} 54... Nd3 {[%clk 0:01:25.3]} 55. Kc4 {[%clk 0:00:56.8]} 55...
Nxf4 {[%clk 0:01:26.1]} 56. Bd8 {[%clk 0:00:56.9]} 56... Nd5 {[%clk 0:01:26.8]}
57. Kd4 {[%clk 0:00:58.8]} 57... g5 {[%clk 0:01:27.8]} 58. Kd3 {[%clk
0:01:00.4]} 58... h4 {[%clk 0:01:25.1]} 59. Ke2 {[%clk 0:01:02.3]} 59... h3
{[%clk 0:01:25.4]} 60. Kf2 {[%clk 0:01:03.5]} 60... g4 {[%clk 0:01:26.5]} 61.
Kg3 {[%clk 0:01:04.8]} 61... Nf4 {[%clk 0:01:27.4]} 62. Bc7 {[%clk 0:01:04.7]}
62... Nh5+ {[%clk 0:01:27.8]} 63. Kh2 {[%clk 0:01:05.3]} 63... e5 {[%clk
0:01:27.1]} 64. Bb6 {[%clk 0:01:05.6]} 64... f6 {[%clk 0:01:27.7]} 65. Bc5
{[%clk 0:01:06.6]} 65... Kf4 {[%clk 0:01:28]} 66. Bb4 {[%clk 0:01:06.7]} 66...
Kf3 {[%clk 0:01:27.3]} 67. Be1 {[%clk 0:01:08.6]} 67... f5 {[%clk 0:01:27.5]}
68. Bh4 {[%clk 0:01:08.9]} 68... Nf4 {[%clk 0:01:27.2]} 69. Be1 {[%clk
0:01:10.8]} 69... e4 {[%clk 0:01:28.3]} 70. Bc3 {[%clk 0:01:10.9]} 70... g3+
{[%clk 0:01:27.9]} 71. Kh1 {[%clk 0:01:12.8]} 71... g2+ {[%clk 0:01:27.3]} 72.
Kh2 {[%clk 0:01:13.8]} 72... Ne2 {[%clk 0:01:28.2]} 73. Bd4 {[%clk 0:01:15.5]}
73... Nxd4 {[%clk 0:01:27.5]} 0-1

[Event "*** MasterClass Titled Tuesday Blitz"]
[Site "Chess.com"]
[Date "2017.08.01"]
[Round "1"]
[White "FearlessKing64"]
[Black "Fablibi"]
[Result "0-1"]
[WhiteElo "2201"]
[BlackElo "2498"]
[TimeControl "180+2"]
[EndTime "13:08:59 PDT"]
[Termination "Fablibi won on time"]

1. e4 {[%clk 0:03:01.9]} 1... c5 {[%clk 0:02:55.3]} 2. Nf3 {[%clk 0:03:02.2]}
2... Nc6 {[%clk 0:02:52.4]} 3. d4 {[%clk 0:03:02.9]} 3... cxd4 {[%clk
0:02:54.3]} 4. Nxd4 {[%clk 0:03:04.3]} 4... e5 {[%clk 0:02:55.2]} 5. Nb5 {[%clk
0:03:05]} 5... d6 {[%clk 0:02:56.4]} 6. N1c3 {[%clk 0:03:05.6]} 6... a6 {[%clk
0:02:56.8]} 7. Na3 {[%clk 0:03:05.8]} 7... b5 {[%clk 0:02:57.6]} 8. Nd5 {[%clk
0:03:06.6]} 8... Nge7 {[%clk 0:02:58.6]} 9. c4 {[%clk 0:03:07]} 9... Nd4 {[%clk
0:02:58.5]} 10. Be3 {[%clk 0:02:42.9]} 10... Nxd5 {[%clk 0:02:53.9]} 11. exd5
{[%clk 0:02:36.1]} 11... Nf5 {[%clk 0:02:49.9]} 12. cxb5 {[%clk 0:02:25.8]}
12... Nxe3 {[%clk 0:02:44.6]} 13. fxe3 {[%clk 0:02:27.7]} 13... Qh4+ {[%clk
0:02:46.5]} 14. Kd2 {[%clk 0:01:22.2]} 14... Be7 {[%clk 0:02:41.1]} 15. Nc2
{[%clk 0:01:11.7]} 15... O-O {[%clk 0:02:38.6]} 16. bxa6 {[%clk 0:00:56.8]}
16... Bxa6 {[%clk 0:02:26.9]} 17. Bxa6 {[%clk 0:00:56.2]} 17... Rxa6 {[%clk
0:02:28.8]} 18. b4 {[%clk 0:00:30.2]} 18... Rb8 {[%clk 0:02:09.3]} 19. a4 {[%clk
0:00:29.6]} 19... Bg5 {[%clk 0:01:48.2]} 20. b5 {[%clk 0:00:29.5]} 20... Rab6
{[%clk 0:01:46]} 21. Qe2 {[%clk 0:00:27.9]} 21... Qe4 {[%clk 0:01:44.7]} 22. Qf3
{[%clk 0:00:26.2]} 22... Qc4 {[%clk 0:01:45.4]} 23. Rhc1 {[%clk 0:00:25.4]}
23... e4 {[%clk 0:01:36.5]} 24. Qf5 {[%clk 0:00:22.8]} 24... Qd3+ {[%clk
0:01:33.8]} 25. Ke1 {[%clk 0:00:23.9]} 25... Bxe3 {[%clk 0:01:35.4]} 26. Nxe3
{[%clk 0:00:22.1]} 26... Qxe3+ {[%clk 0:01:37.3]} 27. Kf1 {[%clk 0:00:23.4]}
27... g6 {[%clk 0:01:37.2]} 28. Rc8+ {[%clk 0:00:23.3]} 28... Kg7 {[%clk
0:01:37.7]} 29. Qd7 {[%clk 0:00:21.3]} 29... Qd3+ {[%clk 0:01:35.3]} 30. Ke1
{[%clk 0:00:20.9]} 30... e3 {[%clk 0:01:29.3]} 31. Rd1 {[%clk 0:00:16.6]} 31...
Qe4 {[%clk 0:01:24.6]} 32. Rc7 {[%clk 0:00:16.6]} 32... Qf4 {[%clk 0:01:20.3]}
33. Ke2 {[%clk 0:00:15.4]} 33... Qf2+ {[%clk 0:01:04]} 34. Kd3 {[%clk
0:00:15.9]} 34... Ra8 {[%clk 0:01:02.6]} 35. Ra1 {[%clk 0:00:12.3]} 35... e2
{[%clk 0:00:56]} 36. Re1 {[%clk 0:00:12.9]} 36... Rxa4 {[%clk 0:00:44.4]} 37.
Rxe2 {[%clk 0:00:14.2]} 37... Qd4+ {[%clk 0:00:39]} 38. Kc2 {[%clk 0:00:13.2]}
38... Ra2+ {[%clk 0:00:38.7]} 39. Kb3 {[%clk 0:00:13.4]} 39... Qxd5+ {[%clk
0:00:21.9]} 40. Kc3 {[%clk 0:00:13.8]} 40... Rxe2 {[%clk 0:00:17.9]} 0-1

[Event "*** MasterClass Titled Tuesday Blitz"]
[Site "Chess.com"]
[Date "2017.08.01"]
[Round "1"]
[White "Anton_Demchenko"]
[Black "backreg"]
[Result "0-1"]
[WhiteElo "2745"]
[BlackElo "2397"]
[TimeControl "180+2"]
[EndTime "13:09:07 PDT"]
[Termination "backreg won by resignation"]

1. e4 {[%clk 0:02:57.4]} 1... c5 {[%clk 0:03:00.9]} 2. Nf3 {[%clk 0:02:53.7]}
2... e6 {[%clk 0:03:02.1]} 3. d4 {[%clk 0:02:49.7]} 3... cxd4 {[%clk 0:03:04]}
4. Nxd4 {[%clk 0:02:51.5]} 4... Nf6 {[%clk 0:03:05.6]} 5. Nc3 {[%clk 0:02:52.2]}
5... Bb4 {[%clk 0:03:07.2]} 6. e5 {[%clk 0:02:53.2]} 6... Nd5 {[%clk 0:03:08.4]}
7. Bd2 {[%clk 0:02:53.1]} 7... Nxc3 {[%clk 0:03:09.4]} 8. bxc3 {[%clk 0:02:51]}
8... Be7 {[%clk 0:03:11.3]} 9. Qg4 {[%clk 0:02:46.4]} 9... O-O {[%clk
0:03:13.2]} 10. Bd3 {[%clk 0:02:33.7]} 10... f5 {[%clk 0:03:13.8]} 11. Qg3
{[%clk 0:02:22.1]} 11... Nc6 {[%clk 0:03:13.4]} 12. O-O {[%clk 0:02:22]} 12...
Bh4 {[%clk 0:03:01.7]} 13. Qe3 {[%clk 0:02:18.2]} 13... h6 {[%clk 0:02:44.1]}
14. Rfd1 {[%clk 0:02:13.4]} 14... Qc7 {[%clk 0:02:34.8]} 15. f4 {[%clk
0:02:09.6]} 15... Nxd4 {[%clk 0:02:30]} 16. cxd4 {[%clk 0:02:08.5]} 16... b6
{[%clk 0:02:31]} 17. d5 {[%clk 0:01:46.3]} 17... exd5 {[%clk 0:02:20.3]} 18. Bb4
{[%clk 0:01:45.4]} 18... Rf7 {[%clk 0:02:13.4]} 19. Be2 {[%clk 0:01:38.2]} 19...
Bb7 {[%clk 0:01:58]} 20. Bh5 {[%clk 0:01:28.5]} 20... Qxc2 {[%clk 0:01:47.2]}
21. Bxf7+ {[%clk 0:01:08.4]} 21... Kxf7 {[%clk 0:01:49.1]} 22. Rd4 {[%clk
0:01:09.5]} 22... a5 {[%clk 0:01:39.4]} 23. Bd6 {[%clk 0:01:08.2]} 23... Rc8
{[%clk 0:01:30.7]} 24. Rd2 {[%clk 0:00:33.9]} 24... Qc3 {[%clk 0:01:28.7]} 25.
Qxc3 {[%clk 0:00:24.6]} 25... Rxc3 {[%clk 0:01:30.6]} 26. Rb1 {[%clk 0:00:26.5]}
26... Bd8 {[%clk 0:01:24.6]} 27. Kf2 {[%clk 0:00:21.9]} 27... Bc6 {[%clk
0:01:22.9]} 28. Rdb2 {[%clk 0:00:19]} 28... b5 {[%clk 0:01:21.4]} 29. Rxb5
{[%clk 0:00:19]} 29... Bxb5 {[%clk 0:01:21.7]} 30. Rxb5 {[%clk 0:00:20.9]} 30...
Rc2+ {[%clk 0:01:20.6]} 31. Kf3 {[%clk 0:00:22.2]} 31... Rxa2 {[%clk 0:01:11.5]}
32. Rb8 {[%clk 0:00:22.4]} 32... Be7 {[%clk 0:01:10]} 33. Bxe7 {[%clk
0:00:13.9]} 33... Kxe7 {[%clk 0:01:10.5]} 34. Rg8 {[%clk 0:00:15.6]} 34... Ra3+
{[%clk 0:01:04.7]} 35. Ke2 {[%clk 0:00:16.6]} 35... g5 {[%clk 0:00:56.4]} 36.
Rg7+ {[%clk 0:00:15]} 36... Ke6 {[%clk 0:00:52.1]} 37. Rg6+ {[%clk 0:00:16.1]}
37... Ke7 {[%clk 0:00:53.3]} 38. fxg5 {[%clk 0:00:13.9]} 38... hxg5 {[%clk
0:00:52.7]} 39. Rxg5 {[%clk 0:00:14.3]} 39... Ke6 {[%clk 0:00:53.8]} 40. h4
{[%clk 0:00:15.7]} 40... Ra2+ {[%clk 0:00:45.8]} 41. Kd3 {[%clk 0:00:14.5]}
41... Ra3+ {[%clk 0:00:44.8]} 42. Ke2 {[%clk 0:00:13.8]} 42... Ra4 {[%clk
0:00:42.7]} 43. g3 {[%clk 0:00:06.4]} 43... Rg4 {[%clk 0:00:42.6]} 44. Rxg4
{[%clk 0:00:02.1]} 44... fxg4 {[%clk 0:00:43.4]} 45. Kd3 {[%clk 0:00:03.7]}
45... Kxe5 {[%clk 0:00:41]} 46. Kc3 {[%clk 0:00:05.6]} 46... d4+ {[%clk
0:00:41.2]} 47. Kd3 {[%clk 0:00:06.9]} 47... a4 {[%clk 0:00:40.4]} 48. h5 {[%clk
0:00:08.3]} 48... a3 {[%clk 0:00:41.5]} 49. h6 {[%clk 0:00:09.4]} 49... Kf6
{[%clk 0:00:42.4]} 50. Kc2 {[%clk 0:00:10.9]} 50... d3+ {[%clk 0:00:43.5]} 51.
Kxd3 {[%clk 0:00:12.2]} 51... a2 {[%clk 0:00:44.8]} 0-1

[Event "*** MasterClass Titled Tuesday Blitz"]
[Site "Chess.com"]
[Date "2017.08.01"]
[Round "1"]
[White "IIIlllII1llIl"]
[Black "Jungle_Jaguar"]
[Result "1-0"]
[WhiteElo "2619"]
[BlackElo "2322"]
[TimeControl "180+2"]
[EndTime "13:09:12 PDT"]
[Termination "IIIlllII1llIl won by checkmate"]

1. d4 {[%clk 0:03:01.9]} 1... Nf6 {[%clk 0:03:00.7]} 2. c4 {[%clk 0:03:03.1]}
2... e6 {[%clk 0:02:56.7]} 3. Nc3 {[%clk 0:03:04.4]} 3... d5 {[%clk 0:02:57.7]}
4. cxd5 {[%clk 0:03:04.8]} 4... exd5 {[%clk 0:02:58.6]} 5. Bg5 {[%clk
0:03:03.6]} 5... Be7 {[%clk 0:02:59.7]} 6. e3 {[%clk 0:02:59.8]} 6... Bf5 {[%clk
0:02:59.1]} 7. Qb3 {[%clk 0:02:43.8]} 7... c6 {[%clk 0:02:47.9]} 8. Qxb7 {[%clk
0:02:33.1]} 8... Nbd7 {[%clk 0:02:48.9]} 9. Qxc6 {[%clk 0:02:27.1]} 9... Rc8
{[%clk 0:02:47.8]} 10. Qa4 {[%clk 0:02:18.2]} 10... O-O {[%clk 0:02:46.8]} 11.
Ba6 {[%clk 0:02:16.9]} 11... Rb8 {[%clk 0:02:44.9]} 12. Bb5 {[%clk 0:01:47.8]}
12... Nb6 {[%clk 0:02:41]} 13. Qd1 {[%clk 0:01:47.3]} 13... Ne4 {[%clk
0:02:35.2]} 14. Bxe7 {[%clk 0:01:34.7]} 14... Qxe7 {[%clk 0:02:35.6]} 15. Nge2
{[%clk 0:01:35.2]} 15... Nxc3 {[%clk 0:02:12.6]} 16. bxc3 {[%clk 0:01:18.5]}
16... Nc4 {[%clk 0:02:07.3]} 17. Bxc4 {[%clk 0:01:16.2]} 17... dxc4 {[%clk
0:02:09.2]} 18. Qc1 {[%clk 0:00:57.9]} 18... Bd3 {[%clk 0:01:47.2]} 19. Nf4
{[%clk 0:00:58.7]} 19... Rb5 {[%clk 0:01:31.5]} 20. Nxd3 {[%clk 0:00:57.5]}
20... cxd3 {[%clk 0:01:32.5]} 21. O-O {[%clk 0:00:42.8]} 21... Rg5 {[%clk
0:01:31.7]} 22. Qd2 {[%clk 0:00:40.7]} 22... Qe4 {[%clk 0:01:26.8]} 23. f3
{[%clk 0:00:41.7]} 23... Qh4 {[%clk 0:01:22.2]} 24. Qxd3 {[%clk 0:00:39.2]}
24... Re8 {[%clk 0:01:12.8]} 25. e4 {[%clk 0:00:36.1]} 25... Re6 {[%clk
0:01:13.2]} 26. f4 {[%clk 0:00:17.7]} 26... Rh5 {[%clk 0:01:06.4]} 27. h3 {[%clk
0:00:17]} 27... Rg6 {[%clk 0:01:07]} 28. Rf3 {[%clk 0:00:16.9]} 28... h6 {[%clk
0:01:03.7]} 29. d5 {[%clk 0:00:17.3]} 29... Qd8 {[%clk 0:00:52.3]} 30. e5 {[%clk
0:00:17.7]} 30... Qb6+ {[%clk 0:00:53.3]} 31. Qe3 {[%clk 0:00:18]} 31... Qb2
{[%clk 0:00:54.8]} 32. Rf2 {[%clk 0:00:16.3]} 32... Qxa1+ {[%clk 0:00:55.8]} 33.
Kh2 {[%clk 0:00:17.8]} 33... Qd1 {[%clk 0:00:48.5]} 34. d6 {[%clk 0:00:17.1]}
34... Qd5 {[%clk 0:00:47.9]} 35. Rd2 {[%clk 0:00:17.4]} 35... Qa8 {[%clk
0:00:31]} 36. d7 {[%clk 0:00:18.5]} 36... Qd8 {[%clk 0:00:32.4]} 37. Qc5 {[%clk
0:00:18.8]} 37... Kh7 {[%clk 0:00:28.3]} 38. Qe3 {[%clk 0:00:06.4]} 38... Qh4
{[%clk 0:00:29.5]} 39. Qe4 {[%clk 0:00:06.6]} 39... Qd8 {[%clk 0:00:26.3]} 40.
f5 {[%clk 0:00:06.7]} 40... Rgg5 {[%clk 0:00:23.6]} 41. g4 {[%clk 0:00:07.4]}
41... Rh4 {[%clk 0:00:23.9]} 42. Kg3 {[%clk 0:00:08.3]} 42... Rgxg4+ {[%clk
0:00:23.2]} 43. hxg4 {[%clk 0:00:08.9]} 43... h5 {[%clk 0:00:24.2]} 44. f6+
{[%clk 0:00:09.6]} 44... g6 {[%clk 0:00:25.8]} 45. Kxh4 {[%clk 0:00:10.9]} 45...
Qb6 {[%clk 0:00:18.6]} 46. d8=Q {[%clk 0:00:09.3]} 46... Qg1 {[%clk 0:00:20.1]}
47. Qxg6+ {[%clk 0:00:08.2]} 47... Kxg6 {[%clk 0:00:20.8]} 48. Qg8+ {[%clk
0:00:08.6]} 48... Kh6 {[%clk 0:00:22.2]} 49. Qg7# {[%clk 0:00:08.8]} 1-0

[Event "*** MasterClass Titled Tuesday Blitz"]
[Site "Chess.com"]
[Date "2017.08.01"]
[Round "1"]
[White "Rickstereo"]
[Black "TregubovP"]
[Result "0-1"]
[WhiteElo "2131"]
[BlackElo "2454"]
[TimeControl "180+2"]
[EndTime "13:09:17 PDT"]
[Termination "TregubovP won on time"]

1. c4 {[%clk 0:03:00.8]} 1... c5 {[%clk 0:02:57.2]} 2. Nf3 {[%clk 0:02:58.3]}
2... Nc6 {[%clk 0:02:55.5]} 3. Nc3 {[%clk 0:02:58.3]} 3... e5 {[%clk 0:02:52.6]}
4. e3 {[%clk 0:02:57.8]} 4... Nf6 {[%clk 0:02:51.4]} 5. d4 {[%clk 0:02:58]} 5...
cxd4 {[%clk 0:02:39]} 6. exd4 {[%clk 0:02:56.8]} 6... e4 {[%clk 0:02:40.4]} 7.
Ng5 {[%clk 0:02:57.5]} 7... Bb4 {[%clk 0:02:38.8]} 8. Bd2 {[%clk 0:02:22.5]}
8... Bxc3 {[%clk 0:02:24.4]} 9. Bxc3 {[%clk 0:02:22.6]} 9... h6 {[%clk 0:02:26]}
10. d5 {[%clk 0:01:45.1]} 10... hxg5 {[%clk 0:02:25.5]} 11. dxc6 {[%clk
0:01:45.5]} 11... dxc6 {[%clk 0:02:26.5]} 12. Qxd8+ {[%clk 0:01:30.7]} 12...
Kxd8 {[%clk 0:02:27.4]} 13. O-O-O+ {[%clk 0:01:32.3]} 13... Ke7 {[%clk
0:02:13.5]} 14. Bb4+ {[%clk 0:01:25.1]} 14... Ke8 {[%clk 0:02:14.6]} 15. Be2
{[%clk 0:01:17.6]} 15... Be6 {[%clk 0:02:13.4]} 16. Bd6 {[%clk 0:01:06.8]} 16...
Rd8 {[%clk 0:02:09.6]} 17. Rhe1 {[%clk 0:00:56.1]} 17... Rxd6 {[%clk 0:01:52.6]}
18. Rxd6 {[%clk 0:00:52.8]} 18... Rxh2 {[%clk 0:01:54.2]} 19. Bf1 {[%clk
0:00:39.7]} 19... Ke7 {[%clk 0:01:53.5]} 20. Red1 {[%clk 0:00:34.2]} 20... Ng4
{[%clk 0:01:44.3]} 21. R6d2 {[%clk 0:00:31.6]} 21... Ne5 {[%clk 0:01:33.2]} 22.
b3 {[%clk 0:00:32.1]} 22... f5 {[%clk 0:01:32.7]} 23. Kb2 {[%clk 0:00:23.3]}
23... c5 {[%clk 0:01:13]} 24. Kc3 {[%clk 0:00:18.9]} 24... Nc6 {[%clk
0:01:04.3]} 25. a3 {[%clk 0:00:19.9]} 25... Nd4 {[%clk 0:00:59.3]} 26. b4 {[%clk
0:00:21.7]} 26... b6 {[%clk 0:01:00.9]} 27. bxc5 {[%clk 0:00:22.2]} 27... bxc5
{[%clk 0:01:02.4]} 28. Rb2 {[%clk 0:00:22.9]} 28... Kf6 {[%clk 0:00:58.3]} 29.
Rb7 {[%clk 0:00:10.5]} 29... f4 {[%clk 0:00:43.5]} 30. Rxa7 {[%clk 0:00:08.8]}
30... f3 {[%clk 0:00:44]} 31. gxf3 {[%clk 0:00:06.8]} 31... exf3 {[%clk
0:00:35.1]} 32. Rc7 {[%clk 0:00:10]} 32... Rxf2 {[%clk 0:00:31.8]} 33. Rxc5
{[%clk 0:00:05.7]} 33... Nf5 {[%clk 0:00:32.6]} 34. Bd3 {[%clk 0:00:05.2]} 34...
g4 {[%clk 0:00:28.1]} 35. Re1 {[%clk 0:00:03.7]} 35... g6 {[%clk 0:00:22.1]} 0-1

[Event "*** MasterClass Titled Tuesday Blitz"]
[Site "Chess.com"]
[Date "2017.08.01"]
[Round "1"]
[White "silverback96"]
[Black "BIG_Pirate"]
[Result "1-0"]
[WhiteElo "2128"]
[BlackElo "2421"]
[TimeControl "180+2"]
[EndTime "13:09:23 PDT"]
[Termination "silverback96 won by resignation"]

1. Nf3 {[%clk 0:03:01.9]} 1... d5 {[%clk 0:03:00.8]} 2. c4 {[%clk 0:03:03.3]}
2... c6 {[%clk 0:03:02]} 3. g3 {[%clk 0:03:02.2]} 3... Nf6 {[%clk 0:03:02.9]} 4.
Bg2 {[%clk 0:03:04.1]} 4... Bg4 {[%clk 0:03:03.4]} 5. O-O {[%clk 0:03:05.2]}
5... e6 {[%clk 0:03:04.5]} 6. h3 {[%clk 0:03:05.8]} 6... Bh5 {[%clk 0:03:05]} 7.
d4 {[%clk 0:03:06.7]} 7... Nbd7 {[%clk 0:03:05.1]} 8. cxd5 {[%clk 0:03:08.1]}
8... cxd5 {[%clk 0:03:05.8]} 9. Qb3 {[%clk 0:03:09.6]} 9... Qb6 {[%clk
0:03:04.3]} 10. Bf4 {[%clk 0:03:10.4]} 10... Qxb3 {[%clk 0:03:04.1]} 11. axb3
{[%clk 0:03:10.9]} 11... a6 {[%clk 0:03:06]} 12. Rc1 {[%clk 0:03:03.5]} 12...
Be7 {[%clk 0:03:00.3]} 13. Rc7 {[%clk 0:03:03.8]} 13... Rb8 {[%clk 0:03:00.6]}
14. g4 {[%clk 0:02:59.5]} 14... Bg6 {[%clk 0:03:00.6]} 15. Bh2 {[%clk
0:02:40.8]} 15... Bd8 {[%clk 0:02:50.9]} 16. Rc1 {[%clk 0:02:28.9]} 16... Ra8
{[%clk 0:02:51.4]} 17. Bd6 {[%clk 0:02:28.1]} 17... Ne4 {[%clk 0:02:50.3]} 18.
Ba3 {[%clk 0:02:25.3]} 18... Bb6 {[%clk 0:02:30.8]} 19. Nc3 {[%clk 0:02:23.5]}
19... Kd8 {[%clk 0:02:18.4]} 20. Na4 {[%clk 0:02:23.9]} 20... Rc8 {[%clk
0:02:07.9]} 21. Ne5 {[%clk 0:02:24.4]} 21... Bxd4 {[%clk 0:01:59.1]} 22. Nxg6
{[%clk 0:02:11.8]} 22... hxg6 {[%clk 0:01:58.9]} 23. Bxe4 {[%clk 0:02:13.2]}
23... dxe4 {[%clk 0:01:57]} 24. Rd1 {[%clk 0:02:13.3]} 24... Ba7 {[%clk
0:01:52.2]} 25. Bb4 {[%clk 0:02:05.7]} 25... Rxh3 {[%clk 0:01:48.5]} 26. Bc3
{[%clk 0:01:29.8]} 26... Ke7 {[%clk 0:01:42.1]} 27. Kg2 {[%clk 0:01:29.8]} 27...
Rh7 {[%clk 0:01:33.6]} 28. Bb4+ {[%clk 0:01:27.7]} 28... Ke8 {[%clk 0:01:26.1]}
29. e3 {[%clk 0:01:18.3]} 29... Ne5 {[%clk 0:01:24.5]} 30. Bd6 {[%clk
0:01:10.5]} 30... Nxg4 {[%clk 0:01:20.6]} 31. b4 {[%clk 0:00:56.6]} 31... f5
{[%clk 0:01:04.7]} 32. Bc5 {[%clk 0:00:34.5]} 32... Rh2+ {[%clk 0:01:03.1]} 33.
Kg3 {[%clk 0:00:28.1]} 33... Bb8+ {[%clk 0:01:03.6]} 34. Bd6 {[%clk 0:00:29.3]}
34... Rxf2 {[%clk 0:00:43.9]} 35. Bxb8 {[%clk 0:00:28.8]} 35... Rf3+ {[%clk
0:00:45.1]} 36. Kh4 {[%clk 0:00:28.3]} 36... Rxb8 {[%clk 0:00:37.1]} 37. Nc5
{[%clk 0:00:29.9]} 37... Nf2 {[%clk 0:00:34.1]} 38. Rd7 {[%clk 0:00:20.6]} 38...
Rh3+ {[%clk 0:00:30.5]} 39. Kg5 {[%clk 0:00:21.6]} 39... Rg3+ {[%clk 0:00:31.5]}
40. Kf4 {[%clk 0:00:20.9]} 40... Rf3+ {[%clk 0:00:21.3]} 41. Ke5 {[%clk
0:00:21.8]} 41... Nd3+ {[%clk 0:00:22.8]} 42. Kxe6 {[%clk 0:00:22.7]} 42...
Nxc5+ {[%clk 0:00:23.3]} 43. bxc5 {[%clk 0:00:24.6]} 43... Rc8 {[%clk
0:00:20.3]} 44. Rh1 {[%clk 0:00:22.5]} 44... Rc6+ {[%clk 0:00:21.3]} 45. Rd6
{[%clk 0:00:11.9]} 1-0